{"text_format":"1","workbook":"xlsx","n_sheets":2,"sheets":["Список","Объекты"],"not_rendered":{"charts":0,"images":2,"macros":1,"external_links":1,"defined_names":7,"comments":0,"pivot_tables":0},"unopened":[],"bounds":{"document_bytes":16777216,"sheet_cells":100000,"rows_first":2000,"rows_last":500,"rows_between":2000,"halvings":0,"cell_chars":16384,"cell_head_chars":4096},"cells_cut":0,"cells_raw":0,"read":"whole","date_system":"1900"}

{"sheet":"Список","index":0,"n_rows":47,"n_cols":14,"rows_kept":47,"cut":false,"hidden":false,"merged":[[8,14,9,17],[4,12,4,13],[5,0,5,13],[46,1,47,13],[6,0,6,6],[41,8,41,9],[41,11,41,12],[44,8,44,9],[44,11,44,12],[8,0,9,0],[8,1,9,1],[8,2,9,2],[8,3,9,3],[8,4,8,5],[8,6,8,7],[8,8,8,9],[8,10,8,11],[8,12,9,12],[8,13,9,13]]}
[null,null,null,null,null,null,null,null,null,null,null,null,"Утверждаю"]
[null,null,null,null,null,null,null,null,null,null,null,null,"Начальник "]
[null,null,null,null,null,null,null,null,null,null,null,null,null,"А.А. Петров"]
[]
[]
["Список"]
["работников,  использующих очередной отпуск в ",null,null,null,null,null,null,"феврале","месяце 2022 года. "]
["       Структурное подразделение:  "]
["№ п/п","ФИО","Таб.№","Штатная должность","Дата ухода в отпуск",null,"Кол-во календарных дней отпуска",null,"Дополнительный отпуск согласно Коллективному договору",null,"Льготный  проезд по пункту 6.2.1. Коллективного договора на 2019-2021 гг.",null,"Матери-альная  помощь","С датой ухода в отпуск ознакомлен"]
[null,null,null,null,"по графику","фактически","по графику","фaкти-чески, в т.ч. НРД ","За ненорм. раб. день ","РКС, МКС (для  межрегио-нальной вахты)","а+б планируемая сумма на проезд ","а+в планируемая сумма на проезд"]
[1,2,3,4,5,6,7,8,9,10,11,12,13,14]
[{"$f":"SUBTOTAL(3,$B$12:B12)","v":0},"Иванов",1929764,"Телефонист произв. связи",null,"2022-01-01",null,10]
[{"$f":"SUBTOTAL(3,$B$12:B13)","v":0},"Петров",1904068,"Инженер",null,"2022-01-10",null,15]
[{"$f":"SUBTOTAL(3,$B$12:B14)","v":0},"Сидоров",1925206,"Телефонист произв. связи",null,"2022-01-10",null,15]
[{"$f":"SUBTOTAL(3,$B$12:B15)","v":0},"Иванов",1915704,"Электромеханик связи",null,"2022-01-24",null,22]
[{"$f":"SUBTOTAL(3,$B$12:B16)","v":1},"Петров",1902910,"Начальник участка",null,"2022-02-01",null,24]
[{"$f":"SUBTOTAL(3,$B$12:B17)","v":1},"Сидоров",1914551,"Электромеханик связи",null,"2022-03-01",null,52]
[{"$f":"SUBTOTAL(3,$B$12:B18)","v":1},"Иванов",1904059,"Инженер II категории",null,"2022-03-01",null,28]
[{"$f":"SUBTOTAL(3,$B$12:B19)","v":1},"Петров",1927879,"Электромонтер СРО",null,"2022-04-01",null,40]
[{"$f":"SUBTOTAL(3,$B$12:B20)","v":1},"Сидоров",1912510,"Электромеханик связи",null,"2022-04-25",null,52]
[{"$f":"SUBTOTAL(3,$B$12:B21)","v":1},"Иванов",1912114,"Электромонтер ЭУ",null,"2022-05-15",null,44]
[{"$f":"SUBTOTAL(3,$B$12:B22)","v":1},"Петров",1912130,"Электромеханик связи",null,"2022-06-15",null,52]
[{"$f":"SUBTOTAL(3,$B$12:B23)","v":1},"Сидоров",1904068,"Инженер",null,"2022-06-23",null,20]
[{"$f":"SUBTOTAL(3,$B$12:B24)","v":1},"Иванов",1912622,"Электромонтер СРО",null,"2022-07-01",null,61]
[{"$f":"SUBTOTAL(3,$B$12:B25)","v":1},"Петров",1904059,"Инженер II категории",null,"2022-07-20",null,24]
[{"$f":"SUBTOTAL(3,$B$12:B26)","v":1},"Сидоров",1929764,"Телефонист произв. связи",null,"2022-07-25",null,52]
[{"$f":"SUBTOTAL(3,$B$12:B27)","v":1},"Иванов",1912044,"Электромонтер СРО",null,"2022-08-01",null,52]
[{"$f":"SUBTOTAL(3,$B$12:B28)","v":1},"Петров",1902910,"Начальник участка",null,"2022-08-23",null,14]
[{"$f":"SUBTOTAL(3,$B$12:B29)","v":1},"Сидоров",1915436,"Электромеханик связи",null,"2022-08-25",null,52]
[{"$f":"SUBTOTAL(3,$B$12:B30)","v":1},"Иванов",1929738,"Электромонтер СРО",null,"2022-09-22",null,52]
[{"$f":"SUBTOTAL(3,$B$12:B31)","v":1},"Петров",1912130,"Электромеханик связи",null,"2022-09-22",null,23]
[{"$f":"SUBTOTAL(3,$B$12:B32)","v":1},"Сидоров",1927879,"Электромонтер СРО",null,"2022-09-26",null,17]
[{"$f":"SUBTOTAL(3,$B$12:B33)","v":1},"Иванов",1915704,"Электромеханик связи",null,"2022-10-03",null,30]
[{"$f":"SUBTOTAL(3,$B$12:B34)","v":1},"Петров",1902910,"Начальник участка",null,"2022-10-24",null,14]
[{"$f":"SUBTOTAL(3,$B$12:B35)","v":1},"Сидоров",1925206,"Телефонист произв. связи",null,"2022-10-25",null,27]
[{"$f":"SUBTOTAL(3,$B$12:B36)","v":1},"Иванов",1912045,"Электромеханик связи",null,"2022-11-10",null,52]
[{"$f":"SUBTOTAL(3,$B$12:B37)","v":1},"Петров",1914551,"Электромеханик связи",null,"2022-11-25",null,7]
[{"$f":"SUBTOTAL(3,$B$12:B38)","v":1},"Сидоров",1912114,"Электромонтер ЭУ",null,"2022-11-25",null,20]
[{"$f":"SUBTOTAL(3,$B$12:B39)","v":1},"Сидоров",1904068,"Инженер",null,"2022-11-26",null,17,null,"???"]
[]
[null,"Руководитель (цеха, участка, отдела, группы, службы, ПЛС)",null,null,null,"Начальник участка связи"]
[null,"                                                                                                                                                                            ",null,null,null,null,null,null,"подпись ",null,null,"расшифровка подписи"]
[null,"Визы:",null,null,null,null,null,null,"                                       "]
[null,"Руководитель группы по КиСР            ",null,null,null,"Начальник участка связи"]
[null,null,null,null,null,null,null,null,"подпись ",null,null,"расшифровка подписи"]
[]
[null,"Несоответствие с утвержденным графиком (перенос, отмена, изменение кол-ва дней отпуска) отмечать жирным шрифтом. Сумму  на льготный проезд планировать с учетом всех членов семьи, за которых будет работник отчитываться. "]

{"sheet":"Объекты","index":1,"n_rows":12,"n_cols":6,"rows_kept":12,"cut":false,"hidden":false,"merged":[]}
["январе","2022-01-31"]
["феврале","2022-02-28"]
["марте","2022-03-31"]
["апреле","2022-04-30"]
["мае","2022-05-31"]
["июне","2022-06-30"]
["июле","2022-07-31"]
["августе","2022-08-31"]
["сентябре","2022-09-30"]
["октябре","2022-10-31",null,null,null,{"$f":"TEXT(INDEX(B1:B12,MATCH(Список!H7,Объекты!A1:A12,0)),\"ММ/ДД/ГГГГ\")","v":"02/28/2022"}]
["ноябре","2022-11-30"]
["декабре","2022-12-31"]